fUST/lending_fUST_20241230
["ID","MTS","AMOUNT","RATE_DAILY","PERIOD"]
[347140897,1735519832638,-500.0,0.00017547,2]
[347140899,1735519832649,-500.0,0.00017547,2]
[347140901,1735519832658,-2673.81,0.00017547,2]
[347140903,1735519832668,-500.0,0.00017794,2]
[347140905,1735519832678,-500.0,0.00017794,2]
[347140907,1735519832687,-500.0,0.00017797,2]
[347140909,1735519832697,-500.0,0.00017797,2]
[347140911,1735519832706,-500.0,0.00017797,2]
[347140913,1735519832716,-2153.35436921,0.00017797,2]
[347140915,1735519832729,-2595.83563079,0.00017797,2]
[347140917,1735519832740,-500.0,0.00017821,2]
[347140919,1735519832750,-500.0,0.00017821,2]
[347140921,1735519832760,-500.0,0.00017821,2]
[347140923,1735519832769,-1179.16436921,0.00017821,2]
[347141305,1735519837739,-1494.64563079,0.00017821,2]
[347141306,1735519837749,-484.96355668,0.00017833,2]
[347141308,1735519837758,-5164.75756255,0.00018,2]
[347141309,1735519837767,-500.0,0.0001803,2]
[347141310,1735519837777,-500.0,0.00018042,2]
[347141311,1735519837787,-500.0,0.00018068,2]
[347141312,1735519837797,-500.0,0.00018071,2]
[347141313,1735519837806,-500.0,0.00018071,2]
[347141315,1735519837816,-299.43888888,0.00018071,2]
[347141316,1735519837827,-4749.19,0.00018071,2]
[347141317,1735519837837,-500.0,0.00018095,2]
[347141318,1735519837847,-500.0,0.00018095,2]
[347141319,1735519837857,-4749.19,0.00018095,2]
[347141320,1735519837867,-2673.81,0.00018095,2]
[347141322,1735519837877,-500.0,0.00018246,2]
[347141323,1735519837886,-500.0,0.00018293,2]
[347141324,1735519837896,-500.0,0.00018342,2]
[347141325,1735519837906,-500.0,0.00018345,2]
[347141326,1735519837916,-500.0,0.00018345,2]
[347141327,1735519837926,-4749.19,0.00018345,2]
[347141329,1735519837936,-500.0,0.00018369,2]
[347141330,1735519837946,-500.0,0.00018369,2]
[347141331,1735519837956,-2673.81,0.00018369,2]
[347141332,1735519837965,-175.84412321,0.00018455,2]
[347141333,1735519837975,-420.0,0.00018536,2]
[347141334,1735519837985,-365.51172681,0.0001859,2]
[347141336,1735519837995,-500.0,0.00018615,2]
[347141337,1735519838004,-526.88272002,0.00018615,2]
[347141338,1735519838013,-500.0,0.00018615,2]
[347141339,1735519838023,-755.17,0.00018615,2]
[347141340,1735519838033,-500.0,0.00018615,2]
[347141341,1735519838042,-210.46013849,0.00018615,2]
[347141343,1735519838051,-500.0,0.00018615,2]
[347141344,1735519838060,-500.0,0.00018615,2]
[347141345,1735519838072,-625.0,0.00018615,2]
[347141346,1735519838081,-500.0,0.00018615,2]
[347141347,1735519838091,-500.0,0.00018615,2]
[347141348,1735519838101,-5201.35,0.00018615,2]
[347141349,1735519838111,-500.0,0.00018615,2]
[347141351,1735519838121,-500.0,0.00018615,2]
[347141352,1735519838130,-500.0,0.00018615,2]
[347141353,1735519838139,-500.0,0.00018615,2]
[347141354,1735519838148,-500.0,0.00018615,2]
[347141355,1735519838159,-500.0,0.00018615,2]
[347141356,1735519838168,-385.96,0.00018615,2]
[347141357,1735519838177,-500.0,0.00018616,2]
[347141358,1735519838186,-500.0,0.00018619,2]
[347141359,1735519838197,-500.0,0.00018619,2]
[347141360,1735519838206,-4749.19,0.00018619,2]
[347141361,1735519838216,-500.0,0.00018643,2]
[347141362,1735519838226,-326.00585083,0.00018643,2]
[347141363,1735519838236,-2673.81,0.00018643,2]
[347141364,1735519838245,-500.0,0.00018794,2]
[347141365,1735519838255,-151.0,0.000188,2]
[347141367,1735519838264,-500.0,0.00018889,2]
[347141368,1735519838273,-500.0,0.00018889,2]
[347141369,1735519838282,-755.17,0.00018889,2]
[347141370,1735519838292,-313.86,0.00018889,2]
[347141371,1735519838302,-500.0,0.00018889,2]
[347141373,1735519838311,-625.0,0.00018889,2]
[347141374,1735519838320,-500.0,0.00018889,2]
[347141375,1735519838330,-500.0,0.00018889,2]
[347141376,1735519838340,-5201.35,0.00018889,2]
[347141377,1735519838349,-478.993355,0.00018889,2]
[347141378,1735519838359,-500.0,0.00018889,2]
[347141379,1735519838369,-500.0,0.00018889,2]
[347141380,1735519838383,-500.0,0.00018889,2]
[347141381,1735519838393,-500.0,0.00018889,2]
[347141382,1735519838403,-322.91235355,0.00018889,2]
[347141383,1735519838413,-500.0,0.0001889,2]
[347141384,1735519838423,-500.0,0.00018893,2]
[347141385,1735519838432,-500.0,0.00018893,2]
[347141387,1735519838444,-4749.19,0.00018893,2]
[347141388,1735519838455,-151.0,0.000189,2]
[347141389,1735519838465,-151.0,0.000189,2]
[347141390,1735519838475,-352.4553754,0.00018904,2]
[347141391,1735519838484,-352.4553754,0.00018904,2]
[347141392,1735519838493,-352.4553754,0.00018904,2]
[347141394,1735519838502,-659.5626942,0.00018904,2]
[347141395,1735519838511,-500.0,0.00018917,2]
[347141396,1735519838520,-2673.81,0.00018917,2]
[347141397,1735519838530,-468.277,0.00019,2]
[347141398,1735519838539,-302.57643837,0.00019,2]
[347141400,1735519838549,-1432.61186853,0.00019048,2]
[347141401,1735519838559,-151.0,0.000191,2]
[347141402,1735519838568,-352.4553754,0.00019141,2]
[347141403,1735519838578,-500.0,0.00019163,2]
[347141405,1735519838587,-755.17,0.00019163,2]
[347141406,1735519838596,-500.0,0.00019163,2]
[347141407,1735519838606,-625.0,0.00019163,2]
[347141408,1735519838616,-500.0,0.00019163,2]
[347141409,1735519838625,-500.0,0.00019163,2]
[347141410,1735519838636,-5201.35,0.00019163,2]
[347141411,1735519838645,-500.0,0.00019163,2]
[347141413,1735519838655,-271.29,0.00019163,2]
[347141414,1735519838664,-500.0,0.00019163,2]
[347141415,1735519838674,-500.0,0.00019163,2]
[347141416,1735519838684,-500.0,0.00019164,2]
[347141417,1735519838694,-470.25877423,0.00019167,2]
[347141418,1735519838703,-500.0,0.00019167,2]
[347141420,1735519838713,-4749.19,0.00019167,2]
[347141421,1735519838723,-306.0,0.00019178,2]
[347141422,1735519838733,-153.5094505,0.00019178,2]
[347141423,1735519838743,-275.5775768,0.00019178,2]
[347141424,1735519838753,-153.0,0.00019178,2]
[347141426,1735519838763,-153.0000001,0.00019178,2]
[347141427,1735519838772,-153.5094505,0.00019178,2]
[347141428,1735519838782,-214.3278492,0.00019178,2]
[347141429,1735519838791,-153.0,0.00019178,2]
[347141430,1735519838801,-153.5094505,0.00019178,2]
[347141432,1735519838810,-214.3278492,0.00019178,2]
[347141433,1735519838820,-153.5094505,0.00019178,2]
[347141434,1735519838829,-214.3278492,0.00019178,2]
[347141435,1735519838838,-383.6178015,0.00019178,2]
[347141436,1735519838847,-302.57643837,0.0001919,2]
[347141437,1735519838857,-500.0,0.00019191,2]
[347141439,1735519838866,-2673.81,0.00019191,2]
[347141440,1735519838876,-151.0,0.000192,2]
[347141441,1735519838885,-153.0,0.00019278,2]
[347141442,1735519838894,-214.3278492,0.00019278,2]
[347141443,1735519838906,-153.5094505,0.00019278,2]
[347141445,1735519838916,-151.0,0.000193,2]
[347141446,1735519838925,-178.03200208,0.00019365,2]
[347141447,1735519838935,-302.57643837,0.0001938,2]
[347141448,1735519838944,-500.0,0.00019437,2]
[347141449,1735519838955,-755.17,0.00019437,2]
[347141451,1735519838965,-500.0,0.00019437,2]
[347141452,1735519838975,-625.0,0.00019437,2]
[347141453,1735519838984,-500.0,0.00019437,2]
[347141454,1735519838994,-500.0,0.00019437,2]
[347141455,1735519839004,-5201.35,0.00019437,2]
[347141457,1735519839013,-500.0,0.00019437,2]
[347141458,1735519839022,-500.0,0.00019437,2]
[347141459,1735519839032,-500.0,0.00019437,2]
[347141460,1735519839041,-500.0,0.00019438,2]
[347141461,1735519839050,-4749.19,0.00019441,2]
[347141462,1735519839060,-500.0,0.00019465,2]
[347141463,1735519839071,-2673.81,0.00019465,2]
[347141464,1735519839080,-178.03200207,0.00019499,2]
[347141465,1735519839090,-151.0,0.000195,2]
[347141466,1735519839099,-160.0,0.00019519,3]
[347141467,1735519839109,-302.57643837,0.0001957,2]
[347141468,1735519839118,-151.0,0.000196,2]
[347141469,1735519839127,-178.03200207,0.00019633,2]
[347141470,1735519839137,-151.0,0.000197,2]
[347141471,1735519839146,-500.0,0.00019711,2]
[347141472,1735519839156,-755.17,0.00019711,2]
[347141473,1735519839165,-500.0,0.00019711,2]
[347141474,1735519839175,-625.0,0.00019711,2]
[347141475,1735519839184,-500.0,0.00019711,2]
[347141477,1735519839195,-500.0,0.00019711,2]
[347141478,1735519839204,-5201.35,0.00019711,2]
[347141479,1735519839213,-500.0,0.00019711,2]
[347141480,1735519839223,-500.0,0.00019711,2]
[347141481,1735519839232,-388.01423621,0.00019711,2]
[347141483,1735519839241,-500.0,0.00019712,2]
[347141484,1735519839251,-151.0,0.00019715,2]
[347141485,1735519839260,-4749.19,0.00019715,2]
[347141486,1735519839269,-153.4903954,0.00019726,2]
[347141487,1735519839278,-500.0,0.00019739,2]
[347141488,1735519839287,-2673.81,0.00019739,2]
[347141489,1735519839297,-303.02975908,0.0001976,2]
[347141490,1735519839307,-175.84412321,0.00019764,2]
[347141492,1735519839317,-178.03200207,0.00019766,2]
[347141494,1735519839326,-232.4572301,0.00019799,2]
[347141496,1735519839335,-151.0,0.000199,2]
[347141497,1735519839345,-178.03200207,0.000199,2]
[347141498,1735519839354,-500.0,0.00019985,2]
[347141499,1735519839363,-755.17,0.00019985,2]
[347141500,1735519839372,-500.0,0.00019985,2]
[347141502,1735519839382,-625.0,0.00019985,2]
[347141503,1735519839391,-632.96,0.00019985,2]
[347141505,1735519839400,-194.63289922,0.00019985,2]
[347141507,1735519839410,-5201.35,0.00019985,2]
[347141509,1735519839419,-500.0,0.00019985,2]
[347141511,1735519839429,-500.0,0.00019985,2]
[347141513,1735519839438,-500.0,0.00019986,2]
[347141515,1735519839450,-4749.19,0.00019989,2]
[347141517,1735519839459,-177.86590128,0.00019999,2]
[347141519,1735519839468,-160.0,0.0002,4]
[347141521,1735519839477,-160.7396668,0.0002,5]
[347141523,1735519839487,-755213.06695643,0.0002,4]
[347141526,1735519839500,-94817.84462801,0.0002,4]
[347141554,1735519839749,-509.41363992,0.00017643,2]
[347141556,1735519839758,-49.10945357,0.0002,4]
[347141558,1735519839769,-1684.04578541,0.0002,4]
[347141560,1735519839781,-606.29,0.0002,4]
[347141564,1735519839809,-1799.07658311,0.0002,4]
[347141567,1735519839818,-151.0,0.0002,2]
[347141569,1735519839827,-151.0,0.0002,2]
[347141570,1735519839837,-151.0,0.0002,2]
[347141571,1735519839846,-250.0,0.0002,2]
[347141573,1735519839855,-251.12007947,0.0002,2]
[347141574,1735519839864,-500.0,0.00020013,2]
[347141575,1735519839873,-626.02944847,0.00020013,2]
[347141576,1735519839884,-713.95701685,0.00020013,2]
[347141811,1735519842938,-1333.82353468,0.00020013,2]
[347141813,1735519842949,-166.854489,0.00020064,30]
[347141815,1735519842958,-158.0493872,0.000201,2]
[347141817,1735519842968,-162.0,0.00020175,2]
[347141819,1735519842977,-153.0,0.00020193,2]
[347141821,1735519842986,-150.333,0.00020215,2]
[347141823,1735519842996,-79.48528395,0.00020215,2]
[347141825,1735519843008,-455.82071605,0.00020215,2]
[347141827,1735519843017,-306.31688549,0.00020215,2]
[347141829,1735519843029,-1828.68311451,0.00020215,2]
[347141831,1735519843039,-2392.999,0.00020215,2]
[347141833,1735519843049,-238.0,0.0002022,2]
[347141835,1735519843058,-3277.2608415,0.00020224,3]
[347141837,1735519843071,-5176.63452353,0.00020224,3]
[347141839,1735519843081,-587.0,0.00020246,2]
[347141841,1735519843090,-500.0,0.00020259,2]
[347141843,1735519843099,-755.17,0.00020259,2]
[347141845,1735519843109,-500.0,0.00020259,2]
[347141847,1735519843118,-625.0,0.00020259,2]
[347141849,1735519843128,-4261.19547899,0.00020259,2]
[347142003,1735519845773,-558.6771946,0.00020259,2]
[347142006,1735519845872,-381.47732641,0.00020259,2]
[347142007,1735519845881,-500.0,0.00020259,2]
[347142008,1735519845890,-500.0,0.0002026,2]
[347142009,1735519845900,-4749.19,0.00020263,2]
[347142011,1735519845909,-499.0,0.00020273,2]
[347142013,1735519845918,-2673.81,0.00020287,2]
[347142015,1735519845927,-227.367421,0.00020318,2]
[347142017,1735519845936,-151.0,0.00020319,2]
[347142019,1735519845946,-618.0,0.000204,2]
[347142021,1735519845955,-400.0,0.00020447,2]
[347142023,1735519845964,-500.0,0.00020533,2]
[347142025,1735519845973,-755.17,0.00020533,2]
[347142027,1735519845982,-500.0,0.00020533,2]
[347142029,1735519845991,-625.0,0.00020533,2]
[347142031,1735519846001,-4117.87294006,0.00020533,2]
[347142033,1735519846013,-1083.47705994,0.00020533,2]
[347142035,1735519846022,-500.0,0.00020533,2]
[347142037,1735519846031,-500.0,0.00020534,2]
[347142039,1735519846040,-4749.19,0.00020537,2]
[347142042,1735519846049,-2673.81,0.00020561,2]
[347142043,1735519846058,-151.0,0.000206,4]
[347142046,1735519846069,-500.0,0.00020684,5]
[347142048,1735519846078,-500.0,0.00020684,5]
[347142050,1735519846087,-500.0,0.00020684,5]
[347142051,1735519846096,-500.0,0.00020684,5]
[347142054,1735519846106,-500.0,0.00020684,5]
[347142056,1735519846115,-224.50622289,0.00020684,5]
[347142058,1735519846124,-179.8,0.0002069,2]
[347142060,1735519846134,-151.52,0.00020706,2]
[347142061,1735519846143,-1914.19551999,0.0002071,2]
[347142063,1735519846152,-1914.19551999,0.0002075,2]
[347142066,1735519846161,-9882.76662775,0.0002079,2]
[347142067,1735519846170,-10816.82859748,0.0002079,2]
[347143008,1735520662700,500.0,0.00021182,120]
[347143009,1735520731359,314.8121914,0.00013,2]
[347143011,1735520959242,-314.07873324,0.00013833,2]
[347143012,1735520970923,2012.98,0.00025,120]
[347143035,1735521038371,-163.211668,0.00013833,2]
[347143036,1735521038381,-400.0,0.00013973,2]
[347143037,1735521038390,-587.01018,0.00015288,2]
[347143038,1735521038399,-250.0,0.00015367,2]
[347143039,1735521038409,-2998.8236256,0.00015401,2]
[347143040,1735521038419,-206.59571913,0.00016436,2]
[347143041,1735521038428,-300.0,0.00016534,2]
[347143042,1735521038437,-500.0,0.00016535,2]
[347143043,1735521038447,-250.0,0.00016535,2]
[347143044,1735521038456,-500.0,0.00016535,2]
[347143045,1735521038466,-500.0,0.00016535,2]
[347143046,1735521038475,-221.03105,0.00016535,2]
[347143047,1735521038485,-500.0,0.00016535,2]
[347143048,1735521038494,-500.0,0.00016535,2]
[347143049,1735521038503,-500.0,0.00016535,2]
[347143050,1735521038513,-500.0,0.00016535,2]
[347143051,1735521038522,-500.0,0.00016535,2]
[347143052,1735521038531,-500.0,0.00016535,2]
[347143053,1735521038540,-500.0,0.00016535,2]
[347143054,1735521038550,-500.0,0.00016535,2]
[347143055,1735521038559,-500.0,0.00016535,2]
[347143056,1735521038568,-500.0,0.00016535,2]
[347143057,1735521038578,-500.0,0.00016535,2]
[347143058,1735521038587,-500.0,0.00016535,2]
[347143059,1735521038596,-500.0,0.00016535,2]
[347143060,1735521038606,-500.0,0.00016535,2]
[347143061,1735521038615,-221.87347667,0.00016535,2]
[347143062,1735521038624,-500.0,0.00016535,2]
[347143063,1735521038634,-500.0,0.00016535,2]
[347143064,1735521038643,-500.0,0.00016535,2]
[347143065,1735521038653,-500.0,0.00016535,2]
[347143066,1735521038662,-500.0,0.00016535,2]
[347143067,1735521038673,-500.0,0.00016535,2]
[347143068,1735521038682,-500.0,0.00016535,2]
[347143069,1735521038692,-500.0,0.00016535,2]
[347143070,1735521038701,-500.0,0.00016535,2]
[347143071,1735521038711,-181.83639104,0.00016536,2]
[347143072,1735521038721,-500.0,0.00016536,2]
[347143073,1735521038730,-500.0,0.00016536,2]
[347143074,1735521038740,-500.0,0.00016536,2]
[347143075,1735521038749,-500.0,0.00016536,2]
[347143076,1735521038759,-500.0,0.00016536,2]
[347143077,1735521038768,-500.0,0.00016536,2]
[347143078,1735521038777,-500.0,0.00016536,2]
[347143079,1735521038786,-500.0,0.00016536,2]
[347143080,1735521038796,-500.0,0.00016536,2]
[347143081,1735521038806,-500.0,0.00016536,2]
[347143082,1735521038815,-500.0,0.00016536,2]
[347143083,1735521038825,-500.0,0.00016536,2]
[347143084,1735521038834,-541.48,0.00016536,2]
[347143085,1735521038844,-500.0,0.00016536,2]
[347143086,1735521038854,-500.0,0.00016536,2]
[347143087,1735521038863,-500.0,0.00016536,2]
[347143088,1735521038872,-575.32,0.00016536,2]
[347143089,1735521038882,-197.98,0.00016536,2]
[347143090,1735521038891,-500.0,0.00016536,2]
[347143091,1735521038902,-500.0,0.00016536,2]
[347143092,1735521038917,-393.37480003,0.00016536,2]
[347143093,1735521038926,-500.0,0.00016536,2]
[347143094,1735521038936,-500.0,0.00016536,2]
[347143095,1735521038947,-500.0,0.00016536,2]
[347143096,1735521038957,-500.0,0.00016536,2]
[347143097,1735521038966,-500.0,0.00016536,2]
[347143098,1735521038976,-500.0,0.00016536,2]
[347143099,1735521038987,-862.53,0.00016536,2]
[347143100,1735521038997,-500.0,0.00016536,2]
[347143101,1735521039007,-500.0,0.00016536,2]
[347143102,1735521039016,-500.0,0.00016536,2]
[347143103,1735521039026,-6566.03,0.00016536,2]
[347143104,1735521039035,-500.0,0.00016536,2]
[347143105,1735521039045,-371.66943355,0.00016536,2]
[347143106,1735521039054,-500.0,0.00016536,2]
[347143107,1735521039065,-500.0,0.00016536,2]
[347143108,1735521039075,-500.0,0.00016536,2]
[347143109,1735521039084,-500.0,0.00016536,2]
[347143110,1735521039094,-500.0,0.00016536,2]
[347143111,1735521039103,-500.0,0.00016536,2]
[347143112,1735521039113,-465.96123078,0.00016536,2]
[347143113,1735521039122,-500.0,0.00016536,2]
[347143114,1735521039131,-500.0,0.00016536,2]
[347143115,1735521039140,-500.0,0.00016536,2]
[347143116,1735521039149,-500.0,0.00016536,2]
[347143117,1735521039159,-326.72,0.00016536,2]
[347143118,1735521039169,-500.0,0.00016536,2]
[347143119,1735521039181,-500.0,0.00016536,2]
[347143120,1735521039190,-500.0,0.00016536,2]
[347143121,1735521039200,-501.10454234,0.00016536,2]
[347143122,1735521039209,-432.05,0.00016536,2]
[347143123,1735521039219,-242.82,0.00016536,2]
[347143124,1735521039228,-500.0,0.00016536,2]
[347143125,1735521039238,-500.0,0.00016536,2]
[347143126,1735521039247,-500.0,0.00016536,2]
[347143127,1735521039257,-500.0,0.00016536,2]
[347143128,1735521039266,-500.0,0.00016536,2]
[347143129,1735521039276,-500.0,0.00016536,2]
[347143130,1735521039285,-622.11250744,0.00016536,2]
[347143131,1735521039294,-19717.9037259,0.00016537,2]
[347143132,1735521039303,-500.0,0.0001681,2]
[347143133,1735521039312,-500.0,0.0001681,2]
[347143134,1735521039322,-500.0,0.0001681,2]
[347143135,1735521039331,-500.0,0.0001681,2]
[347143136,1735521039341,-500.0,0.0001681,2]
[347143137,1735521039350,-500.0,0.0001681,2]
[347143138,1735521039360,-500.0,0.0001681,2]
[347143139,1735521039369,-500.0,0.0001681,2]
[347143140,1735521039379,-500.0,0.0001681,2]
[347143141,1735521039388,-500.0,0.0001681,2]
[347143143,1735521039397,-500.0,0.0001681,2]
[347143145,1735521039406,-500.0,0.0001681,2]
[347143146,1735521039415,-500.0,0.0001681,2]
[347143148,1735521039425,-500.0,0.0001681,2]
[347143150,1735521039435,-570.05,0.0001681,2]
[347143152,1735521039444,-500.0,0.0001681,2]
[347143154,1735521039453,-500.0,0.0001681,2]
[347143167,1735521039556,-862.53,0.0001681,2]
[347143169,1735521039566,-604.77,0.0001681,2]
[347143171,1735521039576,-500.0,0.0001681,2]
[347143173,1735521039587,-500.0,0.0001681,2]
[347143174,1735521039596,-6566.03,0.0001681,2]
[347143175,1735521039606,-500.0,0.0001681,2]
[347143176,1735521039615,-500.0,0.0001681,2]
[347143177,1735521039625,-500.0,0.0001681,2]
[347143178,1735521039635,-500.0,0.0001681,2]
[347143179,1735521039644,-500.0,0.0001681,2]
[347143180,1735521039654,-500.0,0.0001681,2]
[347143181,1735521039664,-500.0,0.0001681,2]
[347143183,1735521039679,-500.0,0.0001681,2]
[347143185,1735521039688,-500.0,0.0001681,2]
[347143187,1735521039698,-500.0,0.0001681,2]
[347143189,1735521039708,-500.0,0.0001681,2]
[347143191,1735521039718,-500.0,0.0001681,2]
[347143193,1735521039727,-500.0,0.0001681,2]
[347143195,1735521039737,-599.24,0.0001681,2]
[347143197,1735521039747,-152.0,0.00016934,2]
[347143199,1735521039757,-500.0,0.00016971,2]
[347143201,1735521039766,-500.0,0.00016971,2]
[347143203,1735521039775,-500.0,0.00016971,2]
[347143205,1735521039786,-500.0,0.00016971,2]
[347143207,1735521039796,-500.0,0.00016971,2]
[347143209,1735521039806,-500.0,0.00016971,2]
[347143211,1735521039815,-500.0,0.00016971,2]
[347143213,1735521039825,-500.0,0.00016971,2]
[347143214,1735521039834,-500.0,0.00016971,2]
[347143217,1735521039843,-500.0,0.00016971,2]
[347143218,1735521039852,-500.0,0.00016971,2]
[347143221,1735521039862,-500.0,0.00016971,2]
[347143223,1735521039872,-500.0,0.00016971,2]
[347143225,1735521039881,-500.0,0.00016971,2]
[347143227,1735521039890,-500.0,0.00016971,2]
[347143229,1735521039899,-500.0,0.00016971,2]
[347143231,1735521039913,-1751.96,0.00016971,2]
[347143232,1735521039925,-500.0,0.00016971,2]
[347143235,1735521039935,-500.0,0.00016971,2]
[347143237,1735521039946,-500.0,0.00017084,2]
[347143238,1735521039955,-500.0,0.00017084,2]
[347143240,1735521039964,-500.0,0.00017084,2]
[347143242,1735521039973,-500.0,0.00017084,2]
[347143244,1735521039984,-500.0,0.00017084,2]
[347143246,1735521039993,-500.0,0.00017084,2]
[347143248,1735521040002,-439.08,0.00017084,2]
[347143250,1735521040012,-500.0,0.00017084,2]
[347143253,1735521040021,-500.0,0.00017084,2]
[347143255,1735521040030,-500.0,0.00017084,2]
[347143257,1735521040040,-500.0,0.00017084,2]
[347143259,1735521040049,-500.0,0.00017084,2]
[347143260,1735521040058,-862.53,0.00017084,2]
[347143262,1735521040067,-500.0,0.00017084,2]
[347143264,1735521040076,-6566.03,0.00017084,2]
[347143266,1735521040085,-500.0,0.00017084,2]
[347143268,1735521040094,-500.0,0.00017084,2]
[347143270,1735521040103,-500.0,0.00017084,2]
[347143272,1735521040113,-500.0,0.00017084,2]
[347143274,1735521040122,-500.0,0.00017084,2]
[347143276,1735521040131,-500.0,0.00017084,2]
[347143278,1735521040140,-500.0,0.00017084,2]
[347143281,1735521040149,-500.0,0.00017084,2]
[347143282,1735521040159,-340.99,0.00017084,2]
[347143284,1735521040169,-500.0,0.00017084,2]
[347143287,1735521040178,-500.0,0.00017084,2]
[347143289,1735521040187,-206.59571906,0.000171,2]
[347143290,1735521040196,-500.0,0.00017245,2]
[347143292,1735521040205,-500.0,0.00017245,2]
[347143294,1735521040215,-500.0,0.00017245,2]
[347143296,1735521040224,-549.26682247,0.00017245,2]
[347143299,1735521040233,-500.0,0.00017245,2]
[347143301,1735521040242,-500.0,0.00017245,2]
[347143302,1735521040251,-500.0,0.00017245,2]
[347143305,1735521040261,-500.0,0.00017245,2]
[347143307,1735521040270,-500.0,0.00017245,2]
[347143308,1735521040279,-500.0,0.00017245,2]
[347143311,1735521040288,-1751.96,0.00017245,2]
[347143312,1735521040297,-500.0,0.00017245,2]
[347143315,1735521040306,-166.333,0.00017355,2]
[347143317,1735521040316,-500.0,0.00017358,2]
[347143319,1735521040326,-247.77,0.00017358,2]
[347143321,1735521040335,-500.0,0.00017358,2]
[347143323,1735521040345,-500.0,0.00017358,2]
[347143325,1735521040353,-500.0,0.00017358,2]
[347143327,1735521040362,-236.0,0.00017358,2]
[347143329,1735521040371,-862.53,0.00017358,2]
[347143331,1735521040380,-500.0,0.00017358,2]
[347143333,1735521040390,-6566.03,0.00017358,2]
[347143335,1735521040399,-500.0,0.00017358,2]
[347143337,1735521040409,-500.0,0.00017358,2]
[347143339,1735521040419,-500.0,0.00017358,2]
[347143341,1735521040428,-500.0,0.00017358,2]
[347143343,1735521040437,-500.0,0.00017358,2]
[347143345,1735521040447,-500.0,0.00017358,2]
[347143346,1735521040456,-500.0,0.00017358,2]
[347143348,1735521040466,-500.0,0.00017358,2]
[347143351,1735521040475,-500.0,0.00017358,2]
[347143352,1735521040485,-500.0,0.00017358,2]
[347143354,1735521040494,-500.0,0.00017519,2]
[347143357,1735521040503,-500.0,0.00017519,2]
[347143358,1735521040513,-500.0,0.00017519,2]
[347143360,1735521040522,-500.0,0.00017519,2]
[347143363,1735521040531,-500.0,0.00017519,2]
[347143364,1735521040541,-1751.96,0.00017519,2]
[347143366,1735521040550,-500.0,0.00017519,2]
[347143368,1735521040559,-500.0,0.00017591,2]
[347143370,1735521040567,-468.22215898,0.00017591,2]
[347143372,1735521040576,-500.0,0.00017591,2]
[347143374,1735521040586,-281.36215528,0.00017591,2]
[347143376,1735521040595,-500.0,0.000176,2]
[347143378,1735521040603,-500.0,0.00017632,2]
[347143380,1735521040613,-220.26,0.00017632,2]
[347143382,1735521040622,-500.0,0.00017632,2]
[347143384,1735521040631,-500.0,0.00017632,2]
[347143386,1735521040640,-862.53,0.00017632,2]
[347143388,1735521040649,-500.0,0.00017632,2]
[347143390,1735521040658,-6566.03,0.00017632,2]
[347143393,1735521040668,-500.0,0.00017632,2]